bitfinex-derivatives/quotes_ETHF0:USTF0_20240922
["timestamp","ask_amount","ask_price","bid_price","bid_amount"]
[1727022115112,0.97682,2559.2,2558.3,3.05]
[1727022115300,0.97682,2559.2,2558.4,0.7416]
[1727022115301,3.2078,2558.9,2558.4,0.7416]
[1727022115500,0.39081,2558.7,2558.4,0.7416]
[1727022115908,1.10419,2558.8,2558.4,1.13244]
[1727022116115,0.7134,2558.8,2558.5,0.39082]
[1727022116709,1.10419,2558.8,2558.4,1.13244]
[1727022116917,0.7134,2558.8,2558.5,0.39083]
[1727022117106,1.10419,2558.8,2558.4,1.13244]
[1727022117310,1.09419,2558.8,2558.4,1.13244]
[1727022117512,1.09419,2558.8,2558.4,1.12244]
[1727022119008,0.39082,2558.6,2558.2,3.9094]
[1727022119210,0.39082,2558.6,2558.2,0.7016]
[1727022119211,3.2078,2558.6,2558.2,0.7016]
[1727022119619,0.39084,2558.5,2558.2,0.7016]
[1727022119923,0.39087,2558.3,2557.9,0.39092]
[1727022120114,0.39085,2558.4,2558.0,0.3909]
[1727022121213,0.39086,2558.3,2558.0,0.3909]
[1727022121418,0.39086,2558.3,2557.9,3.59871]
[1727022121619,0.39087,2558.3,2557.9,3.59872]
[1727022121818,4.18487,2558.6,2557.9,3.2078]
[1727022122120,3.2078,2558.6,2557.9,3.2078]
[1727022122321,0.39084,2558.5,2557.9,3.2078]
[1727022122519,3.59862,2558.6,2558.2,0.39088]
[1727022123018,0.39083,2558.5,2558.1,0.39088]
[1727022124114,4.18488,2558.6,2557.9,3.2078]
[1727022124413,0.39087,2558.3,2557.9,3.59872]
[1727022124615,0.3909,2558.1,2557.9,3.2078]
[1727022124821,0.3909,2558.1,2557.8,0.6918]
[1727022125011,0.39091,2558.0,2557.8,0.6918]
[1727022126026,0.39092,2557.9,2557.8,0.6918]
[1727022126212,0.39092,2558.0,2557.8,0.6918]
[1727022126622,0.38092,2558.0,2557.8,0.6918]
[1727022127726,0.39091,2558.0,2557.7,0.7028]
[1727022128118,0.6845,2558.2,2557.7,1.09375]
[1727022128119,0.3909,2558.1,2557.7,1.09375]
[1727022128722,0.6845,2558.2,2557.7,0.7028]
[1727022128927,3.2078,2558.3,2558.0,0.3909]
[1727022128928,0.39087,2558.3,2558.0,0.3909]
[1727022129128,0.39085,2558.4,2558.0,0.3909]
[1727022129330,0.39086,2558.3,2558.0,0.3909]
[1727022130230,0.39086,2558.3,2557.9,3.2078]
[1727022130231,0.39086,2558.3,2557.9,3.59871]
[1727022130530,0.39086,2558.3,2558.0,0.39091]
[1727022130822,0.7342,2558.5,2557.9,3.2078]
[1727022131032,0.3908,2558.8,2558.3,3.75]
[1727022131331,0.3908,2558.8,2558.1,5.18699953]
[1727022131332,4.18473,2558.9,2558.4,1.4284]
[1727022131629,3.2078,2558.9,2558.0,6.4188]
[1727022131825,3.2078,2558.9,2558.3,0.39086]
[1727022132028,3.2078,2558.9,2558.4,0.39084]
[1727022132218,0.3908,2558.7,2558.4,0.39084]
[1727022132826,3.2078,2558.9,2558.3,3.2078]
[1727022133033,0.39081,2558.7,2558.4,0.39084]
[1727022133232,0.39082,2558.6,2558.3,3.59865]
[1727022133435,0.39082,2558.6,2558.3,0.39085]
[1727022133930,3.2078,2558.9,2558.4,0.39084]
[1727022133931,0.39081,2558.7,2558.4,0.39084]
[1727022134829,0.39082,2558.6,2558.3,3.59865]
[1727022135029,0.39081,2558.7,2558.4,0.39084]
[1727022136928,0.39081,2558.7,2558.3,3.59865]
[1727022137124,0.39083,2558.6,2558.0,7.8472]
[1727022137327,0.39083,2558.6,2558.3,0.39085]
[1727022137838,0.39083,2558.5,2558.2,0.39087]
[1727022138133,0.39082,2558.6,2558.3,0.39086]
[1727022138430,0.3908,2558.7,2558.4,0.39084]
[1727022139325,0.7202,2559.1,2558.6,3.2078]
[1727022139530,3.2078,2559.3,2558.9,0.39077]
[1727022139531,0.39073,2559.2,2558.9,0.39077]
[1727022139928,3.2078,2559.3,2559.0,0.39075]
[1727022140123,0.39071,2559.3,2559.0,0.39075]
[1727022140329,0.39073,2559.2,2558.9,6.64856]
[1727022140727,2.41543,2559.5,2558.7,3.7753]
[1727022140728,0.39076,2559.0,2558.7,3.7753]
[1727022140924,3.2078,2559.3,2558.8,0.39077]
[1727022141121,0.39074,2559.1,2558.8,0.39077]
[1727022141435,0.39073,2559.2,2558.9,0.39077]
[1727022141933,0.39074,2559.1,2558.9,0.39077]
[1727022142122,0.39074,2559.1,2558.8,0.39077]
[1727022143227,0.39074,2559.1,2558.9,0.39077]
[1727022143428,0.39073,2559.2,2558.9,0.39077]
[1727022143629,3.2078,2559.3,2558.9,0.39077]
[1727022143829,0.39073,2559.2,2558.9,0.39077]
[1727022144237,0.39073,2559.2,2559.0,0.39075]
[1727022145130,0.39073,2559.2,2558.9,0.39076]
[1727022145729,0.39073,2559.2,2559.0,0.39075]
[1727022146133,3.2078,2559.3,2558.8,3.2078]
[1727022146134,3.59852,2559.3,2558.9,3.05]
[1727022146336,0.39072,2559.2,2559.0,0.39075]
[1727022147338,1.4387,2559.5,2558.9,3.05]
[1727022147638,0.39064,2559.8,2559.4,3.05]
[1727022147934,0.39063,2559.9,2559.5,0.39068]
[1727022148136,1.5207,2560.1,2559.8,3.44062]
[1727022148331,1.5207,2560.1,2559.9,0.39061]
[1727022148534,3.2078,2560.2,2560.0,0.3906]
[1727022148731,3.2078,2560.2,2560.0,3.4406]
[1727022149227,1.5207,2560.6,2560.1,0.39059]
[1727022149228,0.39055,2560.4,2560.1,0.39059]
[1727022149437,0.39056,2560.3,2560.0,3.44059]
[1727022150142,4.7285,2560.6,2560.0,3.05]
[1727022150325,5.70481,2560.6,2559.9,0.7411]
[1727022150525,5.70481,2560.6,2560.0,0.39059]
[1727022150526,0.39056,2560.3,2560.0,0.39059]
[1727022150737,0.39056,2560.3,2559.9,0.7411]
[1727022151326,0.39056,2560.3,2560.0,0.39059]
[1727022152136,0.39058,2560.2,2559.9,1.13171]
[1727022152335,5.70481,2560.6,2560.3,0.39055]
[1727022152336,3.2078,2560.5,2560.3,0.39055]
[1727022152531,0.3905,2560.7,2560.3,0.39055]
[1727022152734,4.6733,2560.8,2560.3,0.39055]
[1727022152735,0.39051,2560.6,2560.3,0.39055]
[1727022152931,4.6733,2560.8,2560.5,0.39051]
[1727022153132,1.85598,2560.8,2560.3,0.7553]
[1727022153337,0.7585,2560.8,2560.4,3.75]
[1727022153542,1.467,2561.2,2560.5,3.9747]
[1727022153841,1.467,2561.2,2560.9,0.39046]
[1727022154830,1.85743,2561.2,2560.8,0.39047]
[1727022155029,0.39043,2561.1,2560.8,0.39047]
[1727022155238,0.39043,2561.1,2560.7,0.39048]
[1727022156135,1.467,2561.2,2560.8,0.39048]
[1727022156136,1.85743,2561.2,2560.8,0.39048]
[1727022156726,1.85743,2561.2,2560.9,0.39046]
[1727022157532,0.39044,2561.1,2560.7,0.39048]
[1727022157731,0.39044,2561.1,2560.5,12.81486067]
[1727022157732,3.2078,2561.1,2560.6,0.3905]
[1727022157937,0.39045,2561.0,2560.6,0.3905]
[1727022158336,0.39047,2560.9,2560.5,3.9747]
[1727022158544,0.39047,2560.9,2560.6,0.3905]
[1727022159443,0.39046,2561.0,2560.6,0.3905]
[1727022160344,0.39046,2560.9,2560.6,0.3905]
[1727022161346,0.39049,2560.8,2560.5,3.9747]
[1727022161649,0.39049,2560.8,2560.5,4.36522]
[1727022161836,0.39047,2560.9,2560.5,4.36522]
[1727022162039,0.9754,2563.0,2561.7,0.97582]
[1727022162243,3.2078,2562.9,2562.2,3.75]
[1727022162437,0.39017,2562.9,2562.2,3.75]
[1727022162646,0.39017,2562.9,2562.4,3.2078]
[1727022162849,0.39017,2562.9,2562.5,0.39021]
[1727022163044,1.4781,2563.1,2562.4,3.59802]
[1727022163251,0.39016,2562.9,2562.5,0.39021]
[1727022163549,1.4781,2563.1,2562.5,0.39021]
[1727022163550,0.39013,2563.1,2562.7,0.39018]
[1727022163847,0.39017,2562.9,2562.5,4.14021]
[1727022164047,3.2078,2563.2,2562.5,3.75]
[1727022164248,0.39015,2563.0,2562.7,0.39018]
[1727022164944,0.39015,2563.0,2562.6,3.2078]
[1727022165252,0.39015,2563.0,2562.7,0.39018]
[1727022165644,0.39015,2563.0,2562.6,3.598]
[1727022166141,3.2078,2563.2,2562.6,3.2078]
[1727022166544,0.39017,2562.9,2562.6,3.2078]
[1727022166739,0.39017,2562.9,2562.5,4.14021]
[1727022167040,0.39015,2563.0,2562.6,0.3902]
[1727022167643,3.2078,2563.2,2562.6,0.3902]
[1727022167838,4.1831,2563.2,2562.5,3.75]
[1727022168040,0.39019,2562.8,2562.4,0.39023]
[1727022168344,0.39019,2562.7,2562.4,0.39023]
[1727022168541,0.39018,2562.8,2562.3,3.2078]
[1727022168739,0.97533,2563.1,2562.3,3.2078]
[1727022168942,0.3902,2562.7,2562.3,3.59804]
[1727022169645,0.3902,2562.7,2562.4,0.39023]
[1727022170142,0.39018,2562.8,2562.3,3.2078]
[1727022170342,3.2078,2563.2,2562.6,0.3902]
[1727022170550,3.2078,2563.2,2562.3,3.2078]
[1727022170551,0.39017,2562.9,2562.5,0.39021]
[1727022170744,3.2078,2563.2,2562.6,3.2078]
[1727022170745,0.39017,2562.8,2562.6,3.2078]
[1727022170941,0.39019,2562.7,2562.4,0.7424]
[1727022171147,0.3902,2562.6,2562.4,0.7424]
[1727022171651,0.3902,2562.7,2562.4,0.7424]
[1727022171847,3.2078,2563.2,2562.5,0.39021]
[1727022172053,0.39017,2562.9,2562.6,0.3902]
[1727022172852,0.39017,2562.9,2562.5,0.39021]
[1727022173756,0.39018,2562.8,2562.5,0.39021]
[1727022174748,0.97533,2563.1,2562.4,1.13263]
[1727022174954,0.3902,2562.7,2562.4,1.13263]
[1727022175745,0.97533,2563.1,2562.5,0.39021]
[1727022175956,0.97533,2563.1,2562.4,0.7424]
[1727022175957,0.39018,2562.8,2562.4,1.13262]
[1727022176153,0.3902,2562.7,2562.4,0.7424]
[1727022177057,3.9107,2562.9,2562.3,3.59805]
[1727022177355,0.7684,2562.8,2562.3,3.2078]
[1727022177747,0.39021,2562.6,2562.3,3.59805]
[1727022178146,0.39023,2562.5,2562.3,3.2078]
[1727022178854,0.7684,2562.8,2562.3,3.2078]
[1727022179151,0.39019,2562.7,2562.3,3.59804]
[1727022179454,0.3902,2562.6,2562.3,3.59804]
[1727022179662,0.3902,2562.7,2562.3,3.59804]
[1727022179854,0.3902,2562.7,2562.4,0.39023]
[1727022180155,0.3902,2562.6,2562.3,3.59804]
[1727022180357,0.3902,2562.6,2562.5,3.05]
[1727022181265,0.7684,2562.8,2562.5,3.44022]
[1727022181451,4.6719,2562.9,2562.5,3.44022]
[1727022181452,3.9107,2562.9,2562.5,3.05]
[1727022181646,4.30087,2562.9,2562.8,3.05]
[1727022181845,3.2078,2562.9,2562.8,3.44017]
[1727022182050,0.39014,2563.1,2562.8,3.44017]
[1727022182650,0.39015,2563.0,2562.8,3.05]
[1727022182846,0.39016,2562.9,2562.8,3.05]
[1727022184847,4.94962,2563.2,2562.8,3.05]
[1727022185057,0.39015,2563.0,2562.8,3.05]
[1727022185355,3.9743,2563.2,2562.8,3.05]
[1727022185356,3.9743,2563.2,2562.8,3.44017]
[1727022185560,0.39015,2563.0,2562.8,3.05]
[1727022186255,0.39016,2562.9,2562.8,3.05]
[1727022187460,0.39015,2563.0,2562.8,3.05]
[1727022187653,0.39015,2563.0,2562.9,3.05]
[1727022191455,3.2078,2563.2,2562.9,3.05]
[1727022191659,0.14631107,2563.6,2563.3,0.39009]
[1727022191660,0.39008,2563.5,2563.3,0.39009]
[1727022191854,0.39007,2563.5,2563.4,3.05]
[1727022192055,0.39006,2563.6,2563.4,3.05]
[1727022192356,4.1829,2563.8,2563.4,3.05]
[1727022192563,0.39007,2563.5,2563.4,3.05]
[1727022193455,0.3901,2563.3,2563.2,3.05]
[1727022193656,1.15449,2563.4,2563.2,3.44011]
[1727022193861,0.3901,2563.3,2563.2,3.05]
[1727022194060,1.15449,2563.4,2563.2,3.44011]
[1727022194260,0.97513,2563.7,2563.3,0.39009]
[1727022194261,0.39007,2563.5,2563.3,0.39009]
[1727022194861,0.39006,2563.6,2563.4,3.05]
[1727022195060,0.39007,2563.5,2563.4,3.05]
[1727022195867,3.9722,2563.8,2563.4,3.44008]
[1727022196165,0.39005,2563.7,2563.4,3.44008]
[1727022196369,0.39005,2563.7,2563.5,0.39007]
[1727022196670,0.39005,2563.7,2563.4,3.44007]
[1727022196858,0.39005,2563.7,2563.5,0.39007]
[1727022197054,3.9722,2563.8,2563.6,0.39005]
[1727022197055,0.39003,2563.8,2563.6,0.39005]
[1727022197260,3.59777,2564.2,2563.7,3.05]
[1727022197460,3.59777,2564.2,2564.1,3.05]
[1727022197654,3.59777,2564.2,2563.8,1.13162]
[1727022197655,0.38997,2564.2,2563.9,3.05]
[1727022197965,0.38999,2564.0,2563.9,3.05]
[1727022199070,0.38998,2564.1,2563.9,3.05]
[1727022199267,0.38999,2564.0,2563.9,3.05]
[1727022199576,0.7157,2564.2,2563.7,3.05]
[1727022199759,0.39005,2563.6,2563.5,3.05]
[1727022200069,1.69765,2563.9,2563.5,3.05]
[1727022200070,0.39004,2563.7,2563.5,3.05]
[1727022201472,0.39005,2563.6,2563.5,3.05]
[1727022202270,0.7226,2563.9,2563.5,3.05]
[1727022202271,0.39005,2563.7,2563.5,3.05]
[1727022202473,0.39005,2563.6,2563.5,3.05]
[1727022204183,0.3901,2563.3,2563.2,6.2578]
[1727022204376,0.39009,2563.4,2563.2,6.2578]
[1727022204772,0.39006,2563.6,2563.2,6.6479]
[1727022204975,0.39006,2563.6,2563.5,3.05]
[1727022205181,0.39005,2563.7,2563.5,3.05]
[1727022205880,1.4592,2563.9,2563.5,3.05]
[1727022206182,0.39004,2563.7,2563.5,3.05]
[1727022206385,0.39005,2563.6,2563.5,3.05]
[1727022206583,0.39004,2563.7,2563.5,3.05]
[1727022207283,0.39005,2563.6,2563.5,3.05]
[1727022207786,0.39005,2563.7,2563.5,3.05]
[1727022207985,1.4592,2563.9,2563.5,3.05]
[1727022208282,0.39002,2563.8,2563.5,3.05]
[1727022208488,0.39004,2563.7,2563.5,3.05]
[1727022209985,1.4592,2563.9,2563.5,3.05]
[1727022210178,0.39005,2563.6,2563.5,3.05]
[1727022210979,1.4592,2563.9,2563.5,3.05]
[1727022210980,0.39004,2563.7,2563.5,3.05]
[1727022211181,0.39005,2563.6,2563.5,6.2578]
[1727022211483,0.39005,2563.6,2563.5,3.05]
[1727022214182,0.39005,2563.7,2563.5,3.05]
[1727022214384,0.39005,2563.6,2563.5,3.05]
[1727022216295,0.39017,2562.8,2562.7,10.3928]
[1727022216596,0.39017,2562.8,2562.7,3.2078]
[1727022216989,4.29257,2562.8,2562.7,3.2078]
[1727022218500,0.39017,2562.8,2562.7,6.2578]
[1727022219400,1.574,2563.0,2562.7,6.2578]
[1727022219603,1.96415,2563.0,2562.9,3.05]
[1727022219799,0.39015,2563.0,2562.9,3.05]
[1727022220500,0.39014,2563.1,2562.9,3.05]
[1727022221388,0.39014,2563.0,2562.9,3.05]
[1727022222586,0.39018,2562.8,2562.7,3.05]
[1727022223590,0.39018,2562.8,2562.7,6.2578]
[1727022223792,0.39018,2562.8,2562.7,3.05]
[1727022223998,0.39018,2562.8,2562.7,6.2578]
[1727022226002,3.2078,2563.2,2562.7,10.55039]
[1727022226190,0.39016,2562.9,2562.7,3.59799]
[1727022226399,0.39015,2563.0,2562.8,3.05]
[1727022226696,3.2078,2563.2,2562.8,3.05]
[1727022226697,0.39016,2562.9,2562.8,3.05]
[1727022229600,4.4227,2563.4,2562.8,3.05]
[1727022229601,2.50294,2563.4,2562.8,3.05]
[1727022229997,0.39014,2563.1,2562.8,3.44016]
[1727022230207,2.50294,2563.4,2562.8,3.44016]
[1727022230392,0.39014,2563.1,2562.8,3.44016]
[1727022230904,0.39016,2563.0,2562.8,3.05]
[1727022231103,0.39014,2563.1,2562.8,3.44016]
[1727022233203,0.39014,2563.1,2562.9,0.39015]
[1727022236107,1.5277,2563.4,2562.8,3.05]
[1727022236306,1.5277,2563.4,2563.3,3.05]
[1727022236307,1.91778,2563.4,2563.3,3.05]
[1727022238215,0.39008,2563.4,2563.3,3.05]
[1727022238414,3.2078,2563.8,2563.3,3.44009]
[1727022238415,4.7065,2563.8,2563.3,3.44009]
[1727022238713,1.4987,2563.8,2563.3,3.44009]
[1727022239115,0.39007,2563.5,2563.3,3.44009]
[1727022239611,0.39007,2563.5,2563.3,3.05]
[1727022240314,0.39008,2563.4,2563.3,3.05]
[1727022240511,0.97514,2563.6,2563.1,3.05]
[1727022240701,0.39011,2563.2,2563.1,3.05]
[1727022240901,0.39013,2563.1,2563.0,0.7252]
[1727022243411,0.7839,2563.3,2563.0,0.7252]
[1727022243412,0.39012,2563.2,2563.0,0.7252]
[1727022243606,6.96094,2563.6,2563.1,3.05]
[1727022243808,3.75314,2563.6,2563.1,3.05]
[1727022244109,0.3901,2563.4,2563.3,3.05]
[1727022246209,0.39008,2563.4,2563.3,3.05]
[1727022246418,3.9314,2563.7,2563.5,0.39006]
[1727022246419,3.2078,2563.7,2563.5,0.39006]
[1727022246716,0.39002,2563.9,2563.6,0.39005]
[1727022246916,3.2078,2564.0,2563.8,0.39001]
[1727022247218,0.38999,2564.0,2563.9,0.7774]
[1727022248211,3.9,2564.0,2563.6,3.7771]
[1727022248516,0.39003,2563.8,2563.6,3.7771]
[1727022249115,1.71058,2564.1,2563.6,3.7771]
[1727022249519,0.39003,2563.8,2563.6,3.7771]
[1727022249818,1.71058,2564.1,2563.6,3.7771]
[1727022249819,0.39002,2563.9,2563.6,3.7771]
[1727022250212,0.39002,2563.8,2563.6,3.7771]
[1727022250520,0.39001,2563.9,2563.6,4.16715]
[1727022250723,0.7356,2564.1,2563.6,4.16715]
[1727022251016,4.0007,2564.2,2563.8,3.05]
[1727022251219,3.2078,2564.2,2564.1,3.05]
[1727022252319,3.2078,2564.2,2563.5,4.135]
[1727022252320,0.39008,2563.5,2563.2,4.135]
[1727022252510,0.97506,2563.8,2563.2,3.44011]
[1727022252712,0.39007,2563.5,2563.2,3.44011]
[1727022253217,0.39006,2563.6,2563.2,3.4401]
[1727022253423,0.7193,2563.7,2563.4,3.05]
[1727022253715,1.10934,2563.7,2563.4,3.44008]
[1727022254022,0.39005,2563.6,2563.4,3.05]
[1727022256422,4.3272,2564.1,2563.4,3.05]
[1727022256619,0.39009,2563.4,2563.2,3.05]
[1727022257422,0.97506,2563.8,2563.2,3.05]
[1727022257727,0.3901,2563.3,2563.2,3.05]
[1727022258117,0.3901,2563.3,2563.2,6.9516]
[1727022258828,0.9751,2563.7,2563.2,6.9516]
[1727022259026,0.39009,2563.4,2563.2,3.05]
[1727022259224,3.2078,2563.9,2563.2,3.05]
[1727022259424,0.39007,2563.6,2563.4,3.05]
[1727022259628,0.39004,2563.7,2563.4,3.05]
[1727022259924,4.18283,2563.9,2563.6,3.05]
[1727022259925,0.39003,2563.8,2563.6,3.05]
[1727022260122,0.39003,2563.8,2563.7,0.7771]
[1727022260721,0.39003,2563.8,2563.7,1.567]
[1727022260924,0.7858,2564.0,2563.7,1.567]
[1727022261118,0.73,2564.4,2563.9,3.05]
[1727022261317,0.38997,2564.2,2563.9,3.44001]
[1727022262327,0.38998,2564.1,2563.9,3.05]
[1727022262824,0.38992,2564.5,2564.0,3.9]
[1727022263029,0.38992,2564.5,2564.4,3.05]
[1727022263225,0.38989,2564.7,2564.4,3.05]
[1727022263428,0.3899,2564.6,2564.4,3.8169]
[1727022263827,0.38992,2564.5,2564.4,0.7669]
[1727022265833,0.38992,2564.5,2563.9,5.9848]
[1727022265834,0.38999,2564.0,2563.9,1.00478495]
[1727022266126,3.9,2564.0,2563.5,1.10696]
[1727022266337,3.2078,2563.9,2563.5,0.7169]
[1727022266525,0.76,2563.9,2563.5,0.7169]
[1727022266838,0.39005,2563.7,2563.5,0.7169]
[1727022267631,0.39002,2563.8,2563.5,0.7169]
[1727022268032,0.76,2563.9,2563.5,0.7169]
[1727022268218,0.39004,2563.8,2563.5,0.7169]
[1727022268621,0.7775,2564.2,2563.5,0.7169]
[1727022268622,0.7775,2564.2,2563.7,3.05]
[1727022268819,0.7775,2564.2,2563.8,0.7375]
[1727022269126,0.39001,2563.9,2563.8,0.7375]
[1727022272425,0.39005,2563.6,2563.5,0.7169]
[1727022274328,0.39008,2563.4,2563.3,0.7757]
[1727022276234,0.3901,2563.3,2563.2,3.05]
[1727022276533,0.3901,2563.4,2563.2,3.05]
[1727022276731,0.3901,2563.3,2563.2,3.05]
[1727022283243,0.3901,2563.3,2563.1,0.7378]
[1727022283435,0.39011,2563.2,2563.1,0.7378]
[1727022283832,0.39013,2563.1,2563.0,0.7306]
[1727022284035,0.39015,2563.0,2562.8,3.05]
[1727022287339,0.39016,2562.9,2562.8,3.05]
[1727022287545,0.39016,2563.0,2562.8,3.05]
[1727022287745,0.39014,2563.0,2562.8,3.05]
[1727022288344,0.7513,2563.1,2562.8,3.05]
[1727022288345,0.39016,2562.9,2562.8,3.05]
[1727022289037,0.7513,2563.1,2562.8,3.05]
[1727022289235,0.39015,2563.0,2562.8,3.05]
[1727022291452,0.39014,2563.0,2562.8,3.05]
[1727022294345,0.39015,2563.0,2562.8,3.05]
[1727022300248,0.7513,2563.1,2562.8,3.05]
[1727022300752,0.39015,2563.0,2562.8,3.05]
[1727022303059,1.14143,2563.1,2562.8,3.44017]
[1727022303257,1.14144,2563.1,2562.8,3.44017]
[1727022303654,1.14144,2563.1,2562.8,3.44016]
[1727022304159,0.39014,2563.0,2562.8,3.44016]
[1727022305055,0.7824,2563.4,2563.2,0.39011]
[1727022305262,0.97519,2563.5,2563.1,3.44012]
[1727022305458,0.39011,2563.3,2563.2,0.7551]
[1727022305760,0.39011,2563.2,2563.1,3.05]
[1727022305961,0.3901,2563.3,2563.1,3.44013]
[1727022306159,4.18299,2563.5,2563.1,3.44013]
[1727022306358,0.97519,2563.5,2563.1,3.44013]
[1727022306563,0.39011,2563.2,2563.1,3.44013]
[1727022306767,0.39011,2563.3,2563.1,3.44013]
[1727022307072,0.39008,2563.5,2563.3,0.39009]
[1727022307257,0.7941,2563.6,2563.1,6.2578]
[1727022307461,0.7941,2563.6,2563.3,0.39008]
[1727022307462,0.39007,2563.5,2563.3,0.39008]
[1727022308169,0.97511,2563.7,2563.3,0.39008]
[1727022308359,0.39009,2563.4,2563.2,0.3901]
[1727022308554,0.3901,2563.3,2563.2,0.3901]
[1727022308760,0.39014,2563.1,2562.9,1.14525]
[1727022309064,3.2078,2563.5,2562.9,0.7551]
[1727022309065,0.39014,2563.0,2562.9,0.7551]
[1727022309966,0.39018,2562.8,2562.6,3.05]
[1727022310156,0.97537,2563.0,2562.4,4.82718495]
[1727022310353,0.39021,2562.6,2562.4,4.82718495]
[1727022310562,0.97545,2562.8,2562.4,3.05]
[1727022310764,0.39022,2562.5,2562.3,3.2078]
[1727022310959,0.7249,2562.7,2562.3,3.2078]
[1727022311163,0.3902,2562.6,2562.3,3.59805]
[1727022312872,0.7249,2562.7,2562.2,3.05]
[1727022313171,0.39024,2562.4,2562.2,3.05]
[1727022314575,3.2078,2562.5,2562.2,3.05]
[1727022314764,0.39024,2562.4,2562.2,3.05]
[1727022315262,3.9024,2562.3,2562.0,4.135]
[1727022315463,0.3903,2562.0,2561.7,2.64372258]
[1727022315665,0.39029,2562.1,2561.7,1.11664]
[1727022315970,0.3903,2562.0,2561.7,1.11664]
[1727022316171,1.1775,2562.0,2561.7,1.11664]
[1727022316370,0.7872,2562.0,2561.7,1.11664]
[1727022316561,0.7872,2562.0,2561.7,1.87594]
[1727022317166,0.7872,2562.0,2561.7,1.4856]
[1727022317371,0.7782,2561.9,2561.7,3.44033]
[1727022318058,0.7782,2561.9,2561.8,3.44033]
[1727022318264,0.7872,2562.0,2561.8,3.05]
[1727022318459,0.7872,2562.0,2561.8,3.44032]
[1727022318956,0.7872,2562.0,2561.8,3.05]
[1727022320960,0.39028,2562.1,2561.8,3.44032]
[1727022321160,0.7782,2562.2,2561.8,3.05]
[1727022321365,0.39029,2562.1,2561.8,3.05]
[1727022321877,0.7782,2562.2,2561.5,4.21258495]
[1727022322059,7.23367,2561.7,2561.2,4.8687]
[1727022322264,0.39045,2561.0,2560.9,0.7982]
[1727022322572,3.9048,2561.0,2560.5,3.05]
[1727022322767,0.3905,2560.7,2560.5,1.5897]
[1727022322962,6.7314,2561.1,2560.5,1.5897]
[1727022323268,0.7465,2561.0,2560.6,3.05]
[1727022323565,0.39046,2560.9,2560.6,3.05]
[1727022324366,0.7465,2561.0,2560.6,3.05]
[1727022324569,5.85517,2562.5,2561.7,0.39033]
[1727022324570,0.14851881,2562.2,2561.7,0.39033]
[1727022324759,1.4951,2563.2,2562.1,3.05]
[1727022324962,1.4951,2563.2,2562.8,3.05]
[1727022325161,1.4951,2563.2,2562.9,0.7915]
[1727022325572,1.88522,2563.2,2562.9,0.7915]
[1727022325875,1.88521,2563.2,2562.9,0.7915]
[1727022326070,1.4951,2563.2,2562.9,0.7915]
[1727022326569,3.2078,2563.0,2562.5,3.7789]
[1727022326866,3.2078,2563.0,2562.5,4.5208]
[1727022327665,1.4951,2563.2,2562.5,4.5208]
[1727022330570,4.93521,2563.2,2562.5,1.4708]
[1727022331670,1.4951,2563.2,2562.5,1.4708]
[1727022332280,1.88521,2563.2,2562.5,1.4708]
[1727022332579,1.4951,2563.2,2562.5,1.4708]
[1727022333475,1.88521,2563.2,2562.5,1.4708]
[1727022335277,1.88521,2563.2,2562.5,4.5208]
[1727022335877,0.39014,2563.0,2562.5,4.5208]
[1727022336576,0.39016,2563.0,2562.5,0.7419]
[1727022336780,3.48116,2563.0,2562.5,0.7419]
[1727022336976,0.39016,2562.9,2562.5,0.7419]
[1727022337185,0.7834,2562.8,2562.5,0.7419]
[1727022337384,0.7688,2562.7,2562.5,0.7419]
[1727022338475,0.7688,2562.7,2562.5,3.7919]
[1727022338681,0.7407,2562.8,2562.5,3.7919]
[1727022338682,0.7407,2562.8,2562.6,0.7248]
[1727022338888,0.7407,2562.8,2562.6,1.115]
[1727022339086,4.99191,2563.2,2562.6,1.115]
[1727022339392,0.7607,2563.1,2562.6,1.115]
[1727022339878,0.7607,2563.1,2562.6,0.7248]
[1727022340079,0.7607,2563.1,2562.6,1.115]
[1727022340279,0.7607,2563.1,2562.8,3.05]
[1727022340583,1.15083,2563.1,2562.8,3.05]
[1727022341083,0.7607,2563.1,2562.8,3.05]
[1727022341289,1.15083,2563.1,2562.8,3.05]
[1727022341878,0.7607,2563.1,2562.8,3.05]
[1727022342081,3.2078,2563.8,2563.0,3.05]
[1727022342281,0.7844,2563.6,2563.2,3.44011]
[1727022342779,0.7844,2563.6,2563.2,3.05]
[1727022342974,1.17446,2563.6,2563.2,3.05]
[1727022343585,0.39007,2563.5,2563.2,3.05]
[1727022343781,3.2078,2563.5,2563.2,3.05]
[1727022343987,0.7699,2563.4,2563.2,3.05]
[1727022346089,3.2078,2563.5,2563.3,0.3901]
[1727022346688,3.2078,2563.5,2563.2,3.4401]
[1727022346888,3.59787,2563.5,2563.2,3.4401]
[1727022347086,3.2078,2563.5,2563.2,3.4401]
[1727022347285,3.59787,2563.5,2563.1,1.94972]
[1727022347796,3.59787,2563.5,2563.1,1.5596]
[1727022348385,3.59787,2563.5,2563.1,1.94972]
[1727022348793,3.2078,2563.5,2563.1,1.5596]